[Event "Championnat du monde jeunes U12"]
[Date "2024.11.26"]
[White "Dos Santos, Leonardo Lopes"]
[Black "Park, Onyoo"]
[WhiteElo "1930"]
[BlackElo "1710"]
[Round "11.45"]
[Result "1/2-1/2"]
[TimeControl "5400+30"]

1. e4 {[%clk 1:30:29]} 1... e6 {[%clk 1:30:36]} 2. d3 {[%clk 1:30:53]} 2... d5
{[%clk 1:31:02]} 3. Nd2 {[%clk 1:31:19]} 3... c5 {[%clk 1:30:51]} 4. Ngf3 {[%clk
1:31:44]} 4... g6 {[%clk 1:30:59]} 5. g3 {[%clk 1:31:41]} 5... Bg7 {[%clk
1:31:23]} 6. c3 {[%clk 1:31:05]} 6... Nc6 {[%clk 1:30:37]} 7. Bg2 {[%clk
1:31:22]} 7... Nge7 {[%clk 1:28:41]} 8. O-O {[%clk 1:31:38]} 8... O-O {[%clk
1:29:02]} 9. Nb3 {[%clk 1:17:53]} 9... b6 {[%clk 1:25:45]} 10. exd5 {[%clk
1:17:04]} 10... exd5 {[%clk 1:04:46]} 11. d4 {[%clk 1:10:05]} 11... c4 {[%clk
1:04:27]} 12. Nbd2 {[%clk 1:10:29]} 12... Be6 {[%clk 0:55:27]} 13. Re1 {[%clk
1:04:43]} 13... b5 {[%clk 0:42:57]} 14. Ne5 {[%clk 0:58:44]} 14... Nxe5 {[%clk
0:38:07]} 15. dxe5 {[%clk 0:58:51]} 15... Nc6 {[%clk 0:31:55]} 16. f4 {[%clk
0:54:47]} 16... Qb6+ {[%clk 0:29:17]} 17. Kh1 {[%clk 0:53:58]} 17... Rad8 {[%clk
0:23:17]} 18. Nf3 {[%clk 0:52:59]} 18... Rfe8 {[%clk 0:15:44]} 19. Be3 {[%clk
0:50:53]} 19... Qb7 {[%clk 0:15:30]} 20. Nd4 {[%clk 0:37:43]} 20... a5 {[%clk
0:13:49]} 21. Qd2 {[%clk 0:28:41]} 21... Nxd4 {[%clk 0:10:52]} 22. Bxd4 {[%clk
0:26:27]} 22... Bf8 {[%clk 0:08:44]} 23. a3 {[%clk 0:23:55]} 23... b4 {[%clk
0:08:19]} 24. axb4 {[%clk 0:24:08]} 24... axb4 {[%clk 0:08:43]} 25. Ra7 {[%clk
0:23:33]} 25... bxc3 {[%clk 0:08:32]} 26. bxc3 {[%clk 0:23:01]} 26... Qb3 {[%clk
0:07:23]} 27. Rea1 {[%clk 0:21:41]} 27... Rb8 {[%clk 0:06:57]} 28. f5 {[%clk
0:20:46]} 28... Bxf5 {[%clk 0:06:16]} 29. Bxd5 {[%clk 0:19:51]} 29... Be6 {[%clk
0:06:19]} 30. Bxe6 {[%clk 0:19:54]} 30... Rxe6 {[%clk 0:06:34]} 31. Qf4 {[%clk
0:16:50]} 31... Rb7 {[%clk 0:06:54]} 32. Kg1 {[%clk 0:15:43]} 32... Rxa7 {[%clk
0:05:45]} 33. Rxa7 {[%clk 0:16:04]} 33... Qd1+ {[%clk 0:06:10]} 34. Kg2 {[%clk
0:15:17]} 34... Qe2+ {[%clk 0:06:35]} 35. Bf2 {[%clk 0:13:52]} 35... Re7 {[%clk
0:06:56]} 36. Rxe7 {[%clk 0:13:05]} 36... Bxe7 {[%clk 0:07:17]} 37. Qd4 {[%clk
0:12:50]} 37... Bg5 {[%clk 0:06:46]} 38. h3 {[%clk 0:11:02]} 38... Qd3 {[%clk
0:06:34]} 39. Qxd3 {[%clk 0:11:09]} 39... cxd3 {[%clk 0:07:00]} 40. Kf3 {[%clk
0:10:56]} 40... Kf8 {[%clk 0:07:19]} 41. Be3 {[%clk 0:10:56]} 41... d2 {[%clk
0:07:34]} 42. Bc5+ {[%clk 0:11:10]} 42... Ke8 {[%clk 0:07:56]} 43. Ke2 {[%clk
0:11:35]} 43... Kd7 {[%clk 0:08:13]} 44. c4 {[%clk 0:07:19]} 44... Ke6 {[%clk
0:05:39]} 45. Bd4 {[%clk 0:07:44]} 45... h5 {[%clk 0:04:52]} 46. Bc3 {[%clk
0:07:06]} 46... h4 {[%clk 0:05:00]} 47. g4 {[%clk 0:05:45]} 47... Bf4 {[%clk
0:05:18]} 48. Bxd2 Bg5 {[%clk 0:05:06]} 1/2-1/2

[Variant "Standard"]
[Site "Europe Echecs"]

[Event "Championnat du monde jeunes U12"]
[Date "2024.11.26"]
[White "Bundan, Edward"]
[Black "Teo, Hong Kai Javier"]
[WhiteElo "1905"]
[BlackElo "1675"]
[Round "11.46"]
[Result "0-1"]
[TimeControl "5400+30"]

1. e4 {[%clk 1:30:58]} 1... e6 2. d4 {[%clk 1:31:22]} 2... d5 {[%clk 1:31:16]}
3. Nd2 {[%clk 1:31:45]} 3... Nf6 {[%clk 1:31:38]} 4. e5 {[%clk 1:32:08]} 4...
Nfd7 {[%clk 1:32:03]} 5. Bd3 {[%clk 1:32:31]} 5... c5 {[%clk 1:31:43]} 6. c3
{[%clk 1:32:47]} 6... Nc6 {[%clk 1:30:52]} 7. Ngf3 {[%clk 1:33:11]} 7... cxd4
{[%clk 1:25:33]} 8. cxd4 {[%clk 1:33:33]} 8... Qb6 {[%clk 1:25:37]} 9. O-O
{[%clk 1:33:38]} 9... Nxd4 {[%clk 1:23:41]} 10. Nxd4 {[%clk 1:34:00]} 10... Qxd4
{[%clk 1:24:02]} 11. Nf3 {[%clk 1:34:26]} 11... Qb6 {[%clk 1:22:42]} 12. a3
{[%clk 1:34:43]} 12... a5 {[%clk 1:19:13]} 13. Qa4 {[%clk 1:33:12]} 13... Be7
{[%clk 1:13:44]} 14. Qg4 {[%clk 1:30:26]} 14... Kf8 {[%clk 1:10:23]} 15. h4
{[%clk 1:16:12]} 15... Qb3 {[%clk 1:04:23]} 16. Bb1 {[%clk 1:08:57]} 16... b6
{[%clk 1:00:00]} 17. Re1 {[%clk 0:56:29]} 17... h5 {[%clk 0:54:08]} 18. Qf4
{[%clk 0:52:04]} 18... Qc4 {[%clk 0:53:09]} 19. Nd4 {[%clk 0:49:48]} 19... Rh6
{[%clk 0:50:05]} 20. Qg3 {[%clk 0:37:27]} 20... Qxd4 {[%clk 0:48:54]} 21. Bxh6
{[%clk 0:37:15]} 21... gxh6 {[%clk 0:49:16]} 22. Qf3 {[%clk 0:26:05]} 22... Bxh4
{[%clk 0:46:50]} 23. g3 {[%clk 0:19:02]} 23... Nxe5 {[%clk 0:44:46]} 24. Qxh5
{[%clk 0:12:45]} 24... Bxg3 {[%clk 0:44:07]} 25. Qxh6+ {[%clk 0:12:26]} 25...
Ke8 {[%clk 0:44:25]} 26. Qe3 {[%clk 0:08:43]} 26... Qxe3 {[%clk 0:43:35]} 27.
Rxe3 {[%clk 0:08:51]} 27... Bf4 {[%clk 0:44:04]} 28. Rh3 {[%clk 0:08:53]} 28...
Bb7 {[%clk 0:44:05]} 29. Rh8+ {[%clk 0:09:04]} 29... Ke7 {[%clk 0:44:27]} 30.
Rxa8 {[%clk 0:09:13]} 30... Bxa8 {[%clk 0:44:53]} 31. Bc2 {[%clk 0:09:20]} 31...
Bc6 {[%clk 0:44:57]} 32. b3 {[%clk 0:09:00]} 32... Kd6 {[%clk 0:44:28]} 33. Kf1
{[%clk 0:08:23]} 33... Bb5+ {[%clk 0:43:20]} 34. Kg2 {[%clk 0:08:33]} 34... d4
{[%clk 0:43:46]} 35. Rd1 {[%clk 0:08:22]} 35... Bc6+ {[%clk 0:43:37]} 36. Kf1
{[%clk 0:08:39]} 36... Kc5 {[%clk 0:44:01]} 37. a4 {[%clk 0:08:54]} 37... Bf3
{[%clk 0:44:25]} 38. Rb1 {[%clk 0:09:08]} 38... Kb4 {[%clk 0:44:47]} 39. Ke1
{[%clk 0:09:14]} 39... d3 {[%clk 0:44:28]} 40. Bd1 {[%clk 0:09:31]} 40... Bg2
{[%clk 0:44:39]} 41. Bh5 {[%clk 0:09:33]} 41... Kc3 {[%clk 0:44:45]} 42. Kd1
{[%clk 0:09:48]} 42... Bf3+ {[%clk 0:44:45]} 43. Bxf3 {[%clk 0:10:10]} 43...
Nxf3 {[%clk 0:45:13]} 44. Ra1 {[%clk 0:10:18]} 44... Kb2 {[%clk 0:45:38]} 0-1

[Variant "Standard"]
[Site "Europe Echecs"]

[Event "Championnat du monde jeunes U12"]
[Date "2024.11.26"]
[White "Belyaletdinov, Leonard"]
[Black "Mamarasulov, Husan"]
[WhiteElo "1903"]
[BlackElo "1407"]
[Round "11.47"]
[Result "1-0"]
[TimeControl "5400+30"]

1. e4 {[%clk 1:30:59]} 1... c5 {[%clk 1:30:56]} 2. Nf3 {[%clk 1:31:24]} 2... Nc6
{[%clk 1:31:20]} 3. Bb5 {[%clk 1:31:47]} 3... g6 {[%clk 1:31:44]} 4. O-O {[%clk
1:28:37]} 4... Bg7 {[%clk 1:31:23]} 5. c3 {[%clk 1:28:47]} 5... e5 {[%clk
1:29:27]} 6. d3 {[%clk 1:27:17]} 6... a6 {[%clk 1:29:14]} 7. Ba4 {[%clk
1:27:36]} 7... Nge7 {[%clk 1:19:01]} 8. Bg5 {[%clk 1:24:52]} 8... h6 {[%clk
1:15:54]} 9. Be3 {[%clk 1:24:48]} 9... d6 {[%clk 1:16:08]} 10. d4 {[%clk
1:22:22]} 10... b5 {[%clk 1:06:20]} 11. Bc2 {[%clk 1:22:19]} 11... cxd4 {[%clk
1:05:36]} 12. cxd4 {[%clk 1:21:13]} 12... Bg4 {[%clk 1:04:06]} 13. d5 {[%clk
1:20:44]} 13... Nd4 {[%clk 1:01:48]} 14. Bxd4 {[%clk 1:18:48]} 14... exd4 {[%clk
1:02:08]} 15. Nbd2 {[%clk 1:19:04]} 15... O-O {[%clk 0:57:23]} 16. h3 {[%clk
1:18:29]} 16... Bxf3 {[%clk 0:56:43]} 17. Nxf3 {[%clk 1:18:55]} 17... Qb6 {[%clk
0:55:41]} 18. Qd3 {[%clk 1:14:02]} 18... Rac8 {[%clk 0:52:56]} 19. Rfe1 {[%clk
1:11:09]} 19... Rc7 {[%clk 0:50:35]} 20. Bb3 {[%clk 1:11:13]} 20... Rfc8 {[%clk
0:48:26]} 21. Rad1 {[%clk 1:09:53]} 21... Rc4 {[%clk 0:43:37]} 22. Qd2 {[%clk
1:08:22]} 22... d3 {[%clk 0:42:08]} 23. Qxd3 {[%clk 1:06:35]} 23... Bxb2 {[%clk
0:42:26]} 24. Bxc4 {[%clk 1:06:48]} 24... bxc4 {[%clk 0:42:44]} 25. Qc2 {[%clk
1:07:13]} 25... c3 {[%clk 0:32:58]} 26. e5 {[%clk 1:03:22]} 26... Rc5 {[%clk
0:30:02]} 27. e6 {[%clk 1:03:20]} 27... f5 {[%clk 0:30:15]} 28. Qa4 {[%clk
1:01:22]} 28... Qb5 {[%clk 0:30:04]} 29. Qh4 {[%clk 0:59:48]} 29... Nxd5 {[%clk
0:23:20]} 30. e7 {[%clk 0:59:47]} 30... Qe8 {[%clk 0:23:34]} 31. Rxd5 {[%clk
0:59:48]} 31... Ba3 {[%clk 0:15:19]} 32. Rxc5 {[%clk 1:00:06]} 32... dxc5 {[%clk
0:15:38]} 33. Qc4+ {[%clk 1:00:13]} 33... Kh7 {[%clk 0:16:01]} 34. Qd5 {[%clk
0:59:48]} 34... c2 {[%clk 0:11:45]} 35. Qd8 {[%clk 1:00:01]} 35... Qxd8 {[%clk
0:11:53]} 36. exd8=Q {[%clk 0:59:54]} 36... c4 {[%clk 0:12:17]} 37. Ne5 {[%clk
1:00:05]} 37... c3 {[%clk 0:12:09]} 38. Qd7+ {[%clk 1:00:25]} 38... Kh8 {[%clk
0:12:13]} 39. Nxg6+ {[%clk 1:00:49]} 39... Kg8 {[%clk 0:12:27]} 40. Re8+ {[%clk
1:01:10]} 40... Bf8 {[%clk 0:10:02]} 41. Kh2 {[%clk 1:01:24]} 41... c1=N {[%clk
0:10:24]} 42. Kg3 {[%clk 1:01:29]} 42... f4+ {[%clk 0:10:50]} 43. Kxf4 {[%clk
1:01:50]} 43... Ne2+ {[%clk 0:11:15]} 44. Ke5 {[%clk 1:02:09]} 44... c2 {[%clk
0:11:39]} 45. Kf6 {[%clk 1:02:29]} 45... c1=Q 46. Qg7# {[%clk 1:02:40]} 1-0

[Variant "Standard"]
[Site "Europe Echecs"]

[Event "Championnat du monde jeunes U12"]
[Date "2024.11.26"]
[White "Mintz, Nathan"]
[Black "Gazzato, Nicolo`"]
[WhiteElo "1633"]
[BlackElo "1868"]
[Round "11.48"]
[Result "0-1"]
[TimeControl "5400+30"]

1. c4 {[%clk 1:30:58]} 1... g6 {[%clk 1:30:53]} 2. Nc3 {[%clk 1:31:22]} 2... Bg7
{[%clk 1:31:21]} 3. d3 {[%clk 1:31:37]} 3... d6 {[%clk 1:31:33]} 4. g3 {[%clk
1:31:47]} 4... Nf6 {[%clk 1:31:45]} 5. Bg2 {[%clk 1:31:59]} 5... c6 {[%clk
1:32:06]} 6. e4 {[%clk 1:31:30]} 6... Nbd7 {[%clk 1:32:14]} 7. Nge2 {[%clk
1:31:38]} 7... O-O {[%clk 1:32:03]} 8. O-O {[%clk 1:31:54]} 8... e5 {[%clk
1:29:30]} 9. Bg5 {[%clk 1:31:17]} 9... h6 {[%clk 1:29:37]} 10. Bxf6 {[%clk
1:30:47]} 10... Nxf6 {[%clk 1:29:12]} 11. h3 {[%clk 1:27:45]} 11... Nh7 {[%clk
1:26:19]} 12. Kh2 {[%clk 1:25:36]} 12... Be6 {[%clk 1:23:59]} 13. f4 {[%clk
1:20:30]} 13... f5 {[%clk 1:08:39]} 14. Rb1 {[%clk 1:10:19]} 14... a6 {[%clk
1:03:12]} 15. a4 {[%clk 1:07:08]} 15... Rf7 {[%clk 1:01:40]} 16. b4 {[%clk
1:02:01]} 16... Nf8 {[%clk 1:01:14]} 17. b5 {[%clk 0:55:35]} 17... exf4 {[%clk
0:40:39]} 18. gxf4 {[%clk 0:54:25]} 18... axb5 {[%clk 0:35:01]} 19. axb5 {[%clk
0:52:30]} 19... Ra3 {[%clk 0:33:51]} 20. Rb3 {[%clk 0:37:34]} 20... Rxb3 {[%clk
0:32:06]} 21. Qxb3 {[%clk 0:37:31]} 21... Qb6 {[%clk 0:31:33]} 22. Qa4 {[%clk
0:25:53]} 22... cxb5 {[%clk 0:28:16]} 23. Qxb5 {[%clk 0:25:31]} 23... Qe3 {[%clk
0:25:31]} 24. Qb1 {[%clk 0:18:38]} 24... fxe4 {[%clk 0:24:04]} 25. Bxe4 {[%clk
0:18:24]} 25... Qxh3+ {[%clk 0:23:35]} 26. Kg1 {[%clk 0:18:36]} 26... Qe3+
{[%clk 0:20:09]} 27. Kh1 {[%clk 0:18:28]} 27... Qh3+ {[%clk 0:18:51]} 28. Kg1
{[%clk 0:18:41]} 28... Qg4+ {[%clk 0:18:49]} 29. Kh1 {[%clk 0:18:26]} 29... Qh4+
{[%clk 0:18:23]} 30. Kg1 {[%clk 0:18:14]} 30... Kh8 {[%clk 0:11:20]} 31. Qe1
{[%clk 0:17:29]} 31... Qg4+ {[%clk 0:11:21]} 32. Bg2 {[%clk 0:14:15]} 32... Re7
{[%clk 0:07:50]} 33. Rf3 {[%clk 0:12:47]} 33... Bf7 {[%clk 0:05:57]} 34. Rg3
{[%clk 0:10:25]} 34... Qh5 {[%clk 0:05:44]} 35. Rh3 {[%clk 0:09:33]} 35... Qc5+
{[%clk 0:05:37]} 36. Kh1 {[%clk 0:09:02]} 36... Qa5 {[%clk 0:01:06]} 37. Qh4
{[%clk 0:08:24]} 37... Re8 {[%clk 0:00:38]} 38. Qe1 {[%clk 0:06:39]} 38... Be6
{[%clk 0:00:34]} 39. Re3 {[%clk 0:05:35]} 39... Qh5+ {[%clk 0:00:58]} 40. Kg1
{[%clk 0:05:44]} 40... Bd7 {[%clk 0:00:38]} 41. Rxe8 {[%clk 0:05:01]} 41... Bxe8
{[%clk 0:01:06]} 42. Bxb7 {[%clk 0:03:48]} 42... Qc5+ {[%clk 0:01:16]} 43. Qf2
{[%clk 0:03:44]} 43... Qc7 {[%clk 0:01:15]} 44. Bg2 {[%clk 0:03:50]} 44... Qe7
{[%clk 0:00:57]} 45. Nd5 {[%clk 0:03:37]} 45... Qf7 {[%clk 0:01:14]} 46. Nd4
{[%clk 0:03:09]} 46... Qa7 {[%clk 0:01:05]} 47. Nb5 {[%clk 0:02:18]} 47... Qb8
{[%clk 0:00:38]} 48. Nbc7 {[%clk 0:02:10]} 48... Bf7 {[%clk 0:00:43]} 49. Kh2
{[%clk 0:01:48]} 49... Nd7 {[%clk 0:00:48]} 50. Qh4 {[%clk 0:01:16]} 50... Nf8
{[%clk 0:00:33]} 51. Qe7 {[%clk 0:01:03]} 51... Bxd5 {[%clk 0:00:42]} 52. Nxd5
{[%clk 0:01:18]} 52... Qb2 {[%clk 0:00:33]} 53. Qxd6 {[%clk 0:01:07]} 53... g5
{[%clk 0:00:56]} 54. Qb6 {[%clk 0:00:53]} 54... Qxb6 {[%clk 0:00:53]} 55. Nxb6
{[%clk 0:01:14]} 55... Bd4 {[%clk 0:01:13]} 56. Nd5 {[%clk 0:01:25]} 56... gxf4
{[%clk 0:01:20]} 57. Kh3 {[%clk 0:01:25]} 57... Ne6 {[%clk 0:01:42]} 58. Kg4
{[%clk 0:01:29]} 58... Kg7 {[%clk 0:01:42]} 59. Be4 {[%clk 0:01:17]} 59... Be3
{[%clk 0:01:20]} 60. Bf5 {[%clk 0:01:05]} 60... Nd4 {[%clk 0:01:00]} 61. Nxf4
{[%clk 0:01:00]} 61... Nc6 {[%clk 0:00:39]} 62. Nd5 {[%clk 0:01:06]} 62... Bc5
{[%clk 0:00:51]} 63. Nc7 {[%clk 0:00:55]} 63... Kf6 {[%clk 0:00:59]} 64. Bc8
{[%clk 0:00:47]} 64... Ne5+ {[%clk 0:01:17]} 65. Kg3 {[%clk 0:00:40]} 65... Nxd3
{[%clk 0:01:45]} 66. Ba6 {[%clk 0:00:43]} 66... Bd6+ {[%clk 0:02:05]} 67. Kh4
{[%clk 0:00:51]} 67... Bxc7 {[%clk 0:02:34]} 68. Kh5 {[%clk 0:01:02]} 68... Kg7
{[%clk 0:03:01]} 69. Bb5 {[%clk 0:01:16]} 69... Nf4+ {[%clk 0:03:26]} 70. Kg4
{[%clk 0:01:33]} 70... Ne6 {[%clk 0:03:48]} 71. Kh5 {[%clk 0:01:50]} 71... Bf4
{[%clk 0:04:09]} 72. Kg4 {[%clk 0:02:05]} 72... Bg5 {[%clk 0:04:36]} 73. Kh5
{[%clk 0:02:18]} 73... Nc5 {[%clk 0:05:01]} 74. Kg4 {[%clk 0:02:23]} 74... Kf6
{[%clk 0:05:26]} 75. Kh5 {[%clk 0:02:39]} 75... Ke5 {[%clk 0:05:39]} 76. Kg4
{[%clk 0:02:54]} 76... Ke4 {[%clk 0:06:06]} 77. Kh5 {[%clk 0:03:10]} 77... Kf4
{[%clk 0:06:33]} 78. Bc6 {[%clk 0:03:11]} 78... Kf5 {[%clk 0:06:27]} 79. Bd5
{[%clk 0:03:18]} 79... Nd3 {[%clk 0:06:40]} 80. Be6+ {[%clk 0:03:00]} 80... Kxe6
{[%clk 0:07:05]} 81. Kg4 {[%clk 0:03:25]} 81... Nb2 {[%clk 0:07:32]} 82. c5
{[%clk 0:03:21]} 82... Nd3 {[%clk 0:08:01]} 83. c6 {[%clk 0:03:31]} 83... Ne5+
{[%clk 0:08:29]} 84. Kh5 {[%clk 0:03:35]} 84... Nxc6 {[%clk 0:08:54]} 85. Kg4
{[%clk 0:03:51]} 85... Ke5 {[%clk 0:09:14]} 86. Kh5 {[%clk 0:04:09]} 86... Kf4
{[%clk 0:09:40]} 87. Kg6 {[%clk 0:04:21]} 87... Kg4 {[%clk 0:10:09]} 88. Kf7
{[%clk 0:04:38]} 88... Ne5+ {[%clk 0:10:34]} 89. Ke6 {[%clk 0:05:01]} 89... Nf3
{[%clk 0:11:00]} 90. Kd5 {[%clk 0:05:40]} 90... h5 {[%clk 0:11:50]} 91. Kc4
{[%clk 0:05:56]} 91... h4 {[%clk 0:12:17]} 92. Kd3 {[%clk 0:06:17]} 92... h3
{[%clk 0:12:46]} 93. Ke2 {[%clk 0:06:18]} 93... h2 {[%clk 0:13:15]} 94. Kf2
{[%clk 0:06:22]} 94... h1=Q {[%clk 0:13:29]} 95. Ke2 {[%clk 0:06:40]} 95... Qg2+
{[%clk 0:13:55]} 96. Kd3 {[%clk 0:07:02]} 96... Qd2+ {[%clk 0:14:24]} 97. Kc4
{[%clk 0:07:04]} 97... Qd4+ {[%clk 0:14:52]} 98. Kb5 {[%clk 0:07:12]} 98... Bd8
{[%clk 0:15:08]} 99. Kc6 {[%clk 0:07:26]} 99... Ne5+ {[%clk 0:15:26]} 100. Kb7
{[%clk 0:07:41]} 100... Qd5+ {[%clk 0:15:34]} 101. Kc8 {[%clk 0:07:41]} 101...
Qa8# 0-1

[Variant "Standard"]
[Site "Europe Echecs"]

[Event "Championnat du monde jeunes U12"]
[Date "2024.11.26"]
[White "Shirinov, Yashar"]
[Black "Anagnostopoulos, Panagiotis"]
[WhiteElo "1642"]
[BlackElo "1848"]
[Round "11.49"]
[Result "0-1"]
[TimeControl "5400+30"]

1. d4 {[%clk 1:30:57]} 1... Nf6 {[%clk 1:30:54]} 2. c4 {[%clk 1:31:17]} 2... g6
{[%clk 1:31:20]} 3. Nc3 {[%clk 1:31:34]} 3... d5 {[%clk 1:31:45]} 4. cxd5 {[%clk
1:31:55]} 4... Nxd5 {[%clk 1:32:10]} 5. Bd2 {[%clk 1:32:19]} 5... c5 {[%clk
1:32:37]} 6. e4 {[%clk 1:32:17]} 6... Nxc3 {[%clk 1:32:58]} 7. Bxc3 {[%clk
1:32:39]} 7... cxd4 {[%clk 1:33:19]} 8. Qxd4 Qxd4 {[%clk 1:33:32]} 9. Bxd4
{[%clk 1:32:59]} 9... f6 {[%clk 1:33:58]} 10. Nf3 {[%clk 1:26:53]} 10... e5
{[%clk 1:32:31]} 11. Bc3 {[%clk 1:26:58]} 11... Be6 {[%clk 1:31:45]} 12. Bb5+
{[%clk 1:25:15]} 12... Kf7 {[%clk 1:30:48]} 13. O-O {[%clk 1:19:39]} 13... Be7
{[%clk 1:28:24]} 14. Nd2 {[%clk 1:18:48]} 14... a6 {[%clk 1:28:26]} 15. Bc4
{[%clk 1:18:59]} 15... b5 {[%clk 1:26:52]} 16. Bxe6+ {[%clk 1:19:23]} 16... Kxe6
{[%clk 1:27:10]} 17. a3 {[%clk 1:19:05]} 17... Nd7 {[%clk 1:25:34]} 18. Rfd1
{[%clk 1:10:51]} 18... Rac8 {[%clk 1:23:16]} 19. Nb3 {[%clk 1:04:34]} 19... Nb6
{[%clk 1:21:28]} 20. Bb4 {[%clk 1:00:00]} 20... Nc4 {[%clk 1:16:21]} 21. Bc3
{[%clk 0:56:00]} 21... Rhd8 {[%clk 1:13:14]} 22. Rxd8 {[%clk 0:49:36]} 22...
Bxd8 {[%clk 1:11:39]} 23. a4 {[%clk 0:44:52]} 23... Be7 {[%clk 1:06:39]} 24.
axb5 {[%clk 0:44:51]} 24... axb5 {[%clk 1:07:04]} 25. Ra6+ {[%clk 0:44:26]}
25... Kd7 {[%clk 1:06:37]} 26. Ra7+ {[%clk 0:44:20]} 26... Rc7 {[%clk 1:06:50]}
27. Rxc7+ {[%clk 0:44:42]} 27... Kxc7 {[%clk 1:07:18]} 28. Nd2 {[%clk 0:44:28]}
28... Nd6 {[%clk 1:03:42]} 29. f3 {[%clk 0:38:26]} 29... Nb7 {[%clk 1:03:08]}
30. Nf1 {[%clk 0:33:13]} 30... Bc5+ {[%clk 1:02:07]} 31. Kh1 {[%clk 0:33:39]}
31... b4 {[%clk 1:01:01]} 32. Bd2 {[%clk 0:33:35]} 32... Na5 {[%clk 0:59:40]}
33. Ne3 {[%clk 0:33:25]} 33... Bxe3 {[%clk 0:59:47]} 34. Bxe3 {[%clk 0:33:51]}
34... Nc4 {[%clk 0:59:55]} 35. Bc1 {[%clk 0:34:18]} 35... Kc6 {[%clk 0:59:33]}
36. Kg1 {[%clk 0:34:27]} 36... Kb5 {[%clk 0:59:47]} 37. b3 {[%clk 0:34:17]}
37... Na5 {[%clk 1:00:11]} 38. Bh6 {[%clk 0:34:06]} 38... Nxb3 {[%clk 0:59:56]}
39. Bg7 {[%clk 0:34:32]} 39... Nd4 {[%clk 0:59:39]} 40. Bxf6 {[%clk 0:34:57]}
40... b3 {[%clk 0:59:57]} 41. Bxe5 {[%clk 0:35:23]} 41... b2 {[%clk 1:00:19]}
42. Bxd4 {[%clk 0:35:49]} 42... b1=Q+ {[%clk 1:00:44]} 43. Kf2 {[%clk 0:36:12]}
43... Kc4 {[%clk 1:00:58]} 44. Be5 {[%clk 0:36:16]} 44... g5 {[%clk 1:01:09]}
45. Bf6 {[%clk 0:36:23]} 45... g4 {[%clk 1:01:16]} 46. e5 {[%clk 0:36:43]} 46...
gxf3 {[%clk 1:01:33]} 47. gxf3 {[%clk 0:36:50]} 47... Qf5 {[%clk 1:01:55]} 48.
Kg3 {[%clk 0:37:10]} 48... Kd5 {[%clk 1:02:20]} 49. h3 {[%clk 0:36:51]} 49... h5
{[%clk 1:02:46]} 50. f4 {[%clk 0:37:13]} 50... Ke6 {[%clk 1:02:39]} 51. Bg5
{[%clk 0:36:38]} 51... Qd3+ {[%clk 1:03:07]} 52. Kh4 {[%clk 0:36:59]} 52... Kf5
{[%clk 1:03:20]} 53. Bh6 {[%clk 0:37:14]} 53... Qe3 {[%clk 1:03:03]} 54. Bg5
{[%clk 0:37:31]} 54... Qb6 {[%clk 1:02:30]} 55. Kxh5 {[%clk 0:37:34]} 55... Qc7
{[%clk 1:02:14]} 56. Kh4 {[%clk 0:37:49]} 56... Qh7+ {[%clk 1:02:29]} 57. Kg3
{[%clk 0:38:13]} 57... Qd7 {[%clk 1:01:40]} 58. Kh4 {[%clk 0:37:55]} 58... Qd2
{[%clk 1:01:37]} 59. Bh6 {[%clk 0:34:15]} 59... Qf2+ {[%clk 1:01:59]} 60. Kh5
{[%clk 0:34:38]} 60... Qg3 {[%clk 1:02:18]} 61. Bg5 {[%clk 0:34:50]} 61... Qxh3+
{[%clk 1:02:30]} 62. Bh4 {[%clk 0:35:10]} 62... Qg4+ {[%clk 1:02:52]} 63. Kh6
{[%clk 0:35:38]} 63... Qxh4+ {[%clk 1:03:00]} 0-1

[Variant "Standard"]
[Site "Europe Echecs"]

[Event "Championnat du monde jeunes U12"]
[Date "2024.11.26"]
[White "Krasniqi, Troi"]
[Black "Zhang, Sean"]
[WhiteElo "1610"]
[BlackElo "1789"]
[Round "11.50"]
[Result "0-1"]
[TimeControl "5400+30"]

1. e4 {[%clk 1:30:59]} 1... c5 {[%clk 1:30:53]} 2. Nf3 {[%clk 1:31:27]} 2... Nc6
{[%clk 1:31:19]} 3. d4 {[%clk 1:31:51]} 3... cxd4 {[%clk 1:31:45]} 4. Nxd4
{[%clk 1:32:12]} 4... Nf6 {[%clk 1:32:09]} 5. Nc3 {[%clk 1:32:36]} 5... d6
{[%clk 1:32:34]} 6. Be3 {[%clk 1:32:56]} 6... Ng4 {[%clk 1:32:30]} 7. Nxc6
{[%clk 1:33:00]} 7... bxc6 {[%clk 1:32:28]} 8. Bf4 {[%clk 1:32:40]} 8... Qb6
{[%clk 1:31:23]} 9. Qd2 {[%clk 1:31:59]} 9... e5 {[%clk 1:26:23]} 10. Bg3 {[%clk
1:31:47]} 10... Be6 {[%clk 1:26:13]} 11. f3 {[%clk 1:29:00]} 11... Nf6 {[%clk
1:20:59]} 12. Na4 {[%clk 1:24:21]} 12... Qc7 {[%clk 1:20:53]} 13. Be2 {[%clk
1:23:31]} 13... Be7 {[%clk 1:20:37]} 14. O-O {[%clk 1:23:49]} 14... O-O {[%clk
1:20:49]} 15. Bf2 {[%clk 1:23:07]} 15... Rfd8 {[%clk 1:19:17]} 16. c4 {[%clk
1:21:19]} 16... Rac8 {[%clk 1:16:20]} 17. Nc3 {[%clk 1:21:10]} 17... Nd7 {[%clk
1:13:19]} 18. Nd5 {[%clk 1:15:05]} 18... cxd5 {[%clk 1:09:05]} 19. cxd5 {[%clk
1:15:15]} 19... Qc2 {[%clk 1:08:46]} 20. Qe3 {[%clk 1:11:41]} 20... Bxd5 {[%clk
1:07:41]} 21. exd5 {[%clk 1:11:55]} 21... Qxb2 {[%clk 1:07:07]} 22. Ba6 {[%clk
1:10:28]} 22... Rb8 {[%clk 1:05:07]} 23. Rfb1 {[%clk 1:06:36]} 23... Qxb1+
{[%clk 1:04:46]} 24. Rxb1 {[%clk 1:06:54]} 24... Rxb1+ {[%clk 1:05:13]} 25. Bf1
{[%clk 1:07:15]} 25... Nc5 {[%clk 1:04:39]} 26. Qd2 {[%clk 1:06:46]} 26... Rc8
{[%clk 1:03:57]} 27. Qa5 {[%clk 1:05:14]} 27... a6 {[%clk 1:03:03]} 28. Qc3
{[%clk 0:57:51]} 28... Bg5 {[%clk 1:01:10]} 29. g3 {[%clk 0:56:13]} 29... Rc1
{[%clk 0:59:44]} 30. Qa5 {[%clk 0:55:11]} 30... g6 {[%clk 0:58:54]} 31. Kg2
{[%clk 0:52:37]} 31... Rc2 {[%clk 0:57:27]} 32. f4 {[%clk 0:50:57]} 32... Ne4
{[%clk 0:56:14]} 33. Bd3 {[%clk 0:49:23]} 33... Rxf2+ {[%clk 0:55:23]} 34. Kh3
{[%clk 0:49:47]} 34... Nc5 {[%clk 0:53:58]} 35. Bxa6 {[%clk 0:49:40]} 35... Ra8
{[%clk 0:54:01]} 36. fxg5 {[%clk 0:49:48]} 36... Rxa6 {[%clk 0:53:51]} 37. Qd8+
{[%clk 0:49:40]} 37... Kg7 {[%clk 0:54:14]} 38. Kg4 {[%clk 0:49:55]} 38... e4
{[%clk 0:52:58]} 39. h4 {[%clk 0:49:23]} 39... e3 {[%clk 0:53:09]} 40. Qe7
{[%clk 0:49:46]} 40... e2 {[%clk 0:52:37]} 41. Qe3 {[%clk 0:50:05]} 41... Ra4+
{[%clk 0:51:59]} 42. Kh3 {[%clk 0:50:14]} 42... Re4 {[%clk 0:51:46]} 43. Qxf2
{[%clk 0:50:24]} 43... e1=Q {[%clk 0:52:07]} 44. Qf6+ {[%clk 0:50:40]} 44... Kg8
{[%clk 0:52:24]} 45. Qd8+ {[%clk 0:50:59]} 45... Re8 {[%clk 0:52:44]} 46. Qxd6
{[%clk 0:51:25]} 46... Qh1+ {[%clk 0:52:55]} 0-1

[Variant "Standard"]
[Site "Europe Echecs"]